[Event "*** Titled Tuesday Blitz"]
[Site "Chess.com"]
[Date "2020.05.05"]
[Round "5"]
[White "wonderfultime"]
[Black "XDPS"]
[Result "1-0"]
[WhiteElo "2929"]
[BlackElo "2722"]
[TimeControl "180+1"]
[EndTime "10:56:25 PDT"]
[Termination "wonderfultime won by resignation"]

1. d4 {[%clk 0:02:59.6]} 1... d5 {[%clk 0:02:59.8]} 2. Nf3 {[%clk 0:02:58.9]}
2... Nf6 {[%clk 0:02:59.7]} 3. Bf4 {[%clk 0:02:59.5]} 3... e6 {[%clk 0:02:47]}
4. e3 {[%clk 0:02:59]} 4... Bd6 {[%clk 0:02:47.5]} 5. Bg3 {[%clk 0:02:59.5]}
5... O-O {[%clk 0:02:46.9]} 6. c4 {[%clk 0:02:59.7]} 6... c5 {[%clk 0:02:25.9]}
7. Nc3 {[%clk 0:02:58.9]} 7... cxd4 {[%clk 0:02:25.1]} 8. Nxd4 {[%clk
0:02:54.4]} 8... Nc6 {[%clk 0:02:14.3]} 9. Be2 {[%clk 0:02:45.7]} 9... a6 {[%clk
0:02:03.6]} 10. cxd5 {[%clk 0:02:39.7]} 10... exd5 {[%clk 0:02:03.7]} 11. O-O
{[%clk 0:02:37.7]} 11... Bxg3 {[%clk 0:02:01.1]} 12. hxg3 {[%clk 0:02:38.6]}
12... Re8 {[%clk 0:01:59.8]} 13. Rc1 {[%clk 0:02:35.5]} 13... Ne5 {[%clk
0:01:57.8]} 14. Nf3 {[%clk 0:02:34.2]} 14... Neg4 {[%clk 0:01:55.6]} 15. Qd4
{[%clk 0:02:30.4]} 15... Be6 {[%clk 0:01:43.4]} 16. Rfd1 {[%clk 0:02:28.5]}
16... Rc8 {[%clk 0:01:40.3]} 17. Ng5 {[%clk 0:02:23.5]} 17... Nh6 {[%clk
0:01:29.9]} 18. Qb4 {[%clk 0:01:56.6]} 18... b5 {[%clk 0:01:20.8]} 19. a4 {[%clk
0:01:48.1]} 19... bxa4 {[%clk 0:01:20.4]} 20. Qxa4 {[%clk 0:01:49]} 20... Qb6
{[%clk 0:01:18]} 21. Rd2 {[%clk 0:01:42.8]} 21... Ra8 {[%clk 0:01:16.4]} 22.
Nxe6 {[%clk 0:01:32.1]} 22... fxe6 {[%clk 0:01:15.2]} 23. e4 {[%clk 0:01:32.1]}
23... Red8 {[%clk 0:00:48.4]} 24. exd5 {[%clk 0:01:31.4]} 24... exd5 {[%clk
0:00:48.6]} 25. Bf3 {[%clk 0:01:29.9]} 25... Kh8 {[%clk 0:00:42]} 26. Rcd1
{[%clk 0:01:29.3]} 26... Rab8 {[%clk 0:00:41.5]} 27. Nxd5 {[%clk 0:01:07.3]}
27... Nxd5 {[%clk 0:00:41.3]} 28. Bxd5 {[%clk 0:01:08.2]} 28... Nf5 {[%clk
0:00:40.3]} 29. Qf4 {[%clk 0:01:02.8]} 29... Nh6 {[%clk 0:00:34.2]} 30. Bf3
{[%clk 0:00:59.8]} 30... Rf8 {[%clk 0:00:34.3]} 31. Qe5 {[%clk 0:00:49.1]} 31...
Rbe8 {[%clk 0:00:32]} 32. Qd6 {[%clk 0:00:48.6]} 32... Qa7 {[%clk 0:00:21.3]}
33. Re2 {[%clk 0:00:42.1]} 33... Rxe2 {[%clk 0:00:19.9]} 34. Qxf8+ {[%clk
0:00:42.2]} 34... Ng8 {[%clk 0:00:14.7]} 35. Bxe2 {[%clk 0:00:43.1]} 1-0

[Event "*** Titled Tuesday Blitz"]
[Site "Chess.com"]
[Date "2020.05.05"]
[Round "5"]
[White "xamax2000"]
[Black "Jbd735"]
[Result "1-0"]
[WhiteElo "2701"]
[BlackElo "2436"]
[TimeControl "180+1"]
[EndTime "10:56:26 PDT"]
[Termination "xamax2000 won by resignation"]

1. e4 {[%clk 0:03:00.9]} 1... e5 {[%clk 0:02:59.9]} 2. Nf3 {[%clk 0:03:00.2]}
2... Nc6 {[%clk 0:02:59.8]} 3. Bb5 {[%clk 0:03:00.4]} 3... a6 {[%clk 0:02:59.8]}
4. Ba4 {[%clk 0:03:00.6]} 4... Nf6 {[%clk 0:02:59.8]} 5. O-O {[%clk 0:03:00.4]}
5... Be7 {[%clk 0:02:59.8]} 6. Re1 {[%clk 0:02:57.9]} 6... b5 {[%clk 0:02:59.7]}
7. Bb3 {[%clk 0:02:58.1]} 7... d6 {[%clk 0:02:59.9]} 8. c3 {[%clk 0:02:54.2]}
8... O-O {[%clk 0:02:59.6]} 9. h3 {[%clk 0:02:53.7]} 9... Na5 {[%clk 0:02:59.5]}
10. Bc2 {[%clk 0:02:53.3]} 10... c5 {[%clk 0:02:59.9]} 11. d4 {[%clk 0:02:54.2]}
11... Qc7 {[%clk 0:02:59.7]} 12. Nbd2 {[%clk 0:02:54.2]} 12... Nc6 {[%clk
0:02:58.2]} 13. d5 {[%clk 0:02:47.8]} 13... Nd8 {[%clk 0:02:58.1]} 14. a4 {[%clk
0:02:47.3]} 14... Rb8 {[%clk 0:02:57.8]} 15. b4 {[%clk 0:02:44.3]} 15... Ne8
{[%clk 0:02:54.4]} 16. Nf1 {[%clk 0:02:38.9]} 16... c4 {[%clk 0:02:48.2]} 17.
Ng3 {[%clk 0:02:38]} 17... g6 {[%clk 0:02:47.8]} 18. Be3 {[%clk 0:02:32.9]}
18... Ng7 {[%clk 0:02:46]} 19. axb5 {[%clk 0:02:29.3]} 19... axb5 {[%clk
0:02:46.9]} 20. Ra7 {[%clk 0:02:29.4]} 20... Rb7 {[%clk 0:02:44.6]} 21. Ra8
{[%clk 0:02:26.2]} 21... Rb8 {[%clk 0:02:35.4]} 22. Ra7 {[%clk 0:02:09.7]} 22...
Rb7 {[%clk 0:02:34.7]} 23. Ra5 {[%clk 0:02:10.1]} 23... Bd7 {[%clk 0:02:30.4]}
24. h4 {[%clk 0:01:50.1]} 24... Bg4 {[%clk 0:02:24.1]} 25. Bg5 {[%clk 0:01:45]}
25... f6 {[%clk 0:02:06.3]} 26. Bh6 {[%clk 0:01:44.7]} 26... Nf7 {[%clk
0:02:04.3]} 27. Qd2 {[%clk 0:01:40.9]} 27... Bxf3 {[%clk 0:01:58.3]} 28. gxf3
{[%clk 0:01:40.6]} 28... Qd7 {[%clk 0:01:27.1]} 29. Kg2 {[%clk 0:01:37.4]} 29...
Nxh6 {[%clk 0:01:08.3]} 30. Qxh6 {[%clk 0:01:34]} 30... f5 {[%clk 0:00:50.6]}
31. exf5 {[%clk 0:01:22.9]} 31... gxf5 {[%clk 0:00:51.5]} 32. Rg1 {[%clk
0:01:15]} 32... Rf6 {[%clk 0:00:49.8]} 33. Ra8+ {[%clk 0:01:08.3]} 33... Kf7
{[%clk 0:00:20.5]} 34. Qxh7 {[%clk 0:01:05.1]} 34... Rg6 {[%clk 0:00:19.8]} 35.
Kf1 {[%clk 0:00:56.2]} 35... Bf8 {[%clk 0:00:14.7]} 36. h5 {[%clk 0:00:53.4]}
36... Rf6 {[%clk 0:00:06.6]} 37. Nxf5 {[%clk 0:00:50.7]} 1-0

[Event "*** Titled Tuesday Blitz"]
[Site "Chess.com"]
[Date "2020.05.05"]
[Round "5"]
[White "Roenko_Artur"]
[Black "2346PL"]
[Result "0-1"]
[WhiteElo "2199"]
[BlackElo "2365"]
[TimeControl "180+1"]
[EndTime "10:56:26 PDT"]
[Termination "2346PL won on time"]

1. d4 {[%clk 0:03:00.9]} 1... f5 {[%clk 0:02:59.7]} 2. Nc3 {[%clk 0:02:58.4]}
2... Nf6 {[%clk 0:03:00.1]} 3. Bg5 {[%clk 0:02:58.2]} 3... d5 {[%clk 0:03:00.6]}
4. h4 {[%clk 0:02:52.6]} 4... e6 {[%clk 0:02:56.4]} 5. h5 {[%clk 0:02:39.1]}
5... c5 {[%clk 0:02:50.3]} 6. e3 {[%clk 0:02:34.2]} 6... Nc6 {[%clk 0:02:48.4]}
7. Nf3 {[%clk 0:02:26.6]} 7... Be7 {[%clk 0:02:42.4]} 8. Bb5 {[%clk 0:02:04.8]}
8... Bd7 {[%clk 0:02:42.1]} 9. Bxc6 {[%clk 0:02:04]} 9... Bxc6 {[%clk 0:02:43]}
10. Ne5 {[%clk 0:02:04.2]} 10... Rc8 {[%clk 0:02:40.9]} 11. h6 {[%clk
0:01:50.9]} 11... g6 {[%clk 0:02:40.2]} 12. Qe2 {[%clk 0:01:22.6]} 12... a6
{[%clk 0:02:37.2]} 13. O-O {[%clk 0:01:11.2]} 13... O-O {[%clk 0:02:31.6]} 14.
Qf3 {[%clk 0:00:58.4]} 14... b5 {[%clk 0:02:27.4]} 15. Qh3 {[%clk 0:00:54.6]}
15... Nd7 {[%clk 0:02:15.2]} 16. Bxe7 {[%clk 0:00:45.9]} 16... Qxe7 {[%clk
0:02:16.1]} 17. Nxd7 {[%clk 0:00:45.6]} 17... Bxd7 {[%clk 0:02:13.6]} 18. Ne2
{[%clk 0:00:42.5]} 18... e5 {[%clk 0:02:10.5]} 19. dxe5 {[%clk 0:00:35.8]} 19...
Qxe5 {[%clk 0:02:03.6]} 20. c3 {[%clk 0:00:34]} 20... Kh8 {[%clk 0:01:56.5]} 21.
Rfd1 {[%clk 0:00:26.9]} 21... Rcd8 {[%clk 0:01:49.5]} 22. Qf3 {[%clk 0:00:26.8]}
22... Bc6 {[%clk 0:01:48.7]} 23. Qf4 {[%clk 0:00:26.9]} 23... Qf6 {[%clk
0:01:45.4]} 24. Rd2 {[%clk 0:00:24.6]} 24... g5 {[%clk 0:01:43.3]} 25. Qh2
{[%clk 0:00:23.3]} 25... f4 {[%clk 0:01:41.4]} 26. exf4 {[%clk 0:00:22]} 26...
gxf4 {[%clk 0:01:42.2]} 27. f3 {[%clk 0:00:20.6]} 27... Rde8 {[%clk 0:01:34.4]}
28. Rad1 {[%clk 0:00:20.2]} 28... Re5 {[%clk 0:01:34.5]} 29. Qh3 {[%clk
0:00:15.8]} 29... Rfe8 {[%clk 0:01:27.9]} 30. Kf2 {[%clk 0:00:12.2]} 30... a5
{[%clk 0:01:19.4]} 31. Nc1 {[%clk 0:00:10.7]} 31... Re3 {[%clk 0:01:05.3]} 32.
Nd3 {[%clk 0:00:09.4]} 32... c4 {[%clk 0:01:01.3]} 33. Nc1 {[%clk 0:00:07.9]}
33... b4 {[%clk 0:01:01.8]} 34. Ne2 {[%clk 0:00:07.8]} 34... Ba4 {[%clk
0:01:00.5]} 35. b3 {[%clk 0:00:06.6]} 35... cxb3 {[%clk 0:01:00.2]} 36. axb3
{[%clk 0:00:06.6]} 36... Bxb3 {[%clk 0:01:00.4]} 37. Rb1 {[%clk 0:00:06.1]}
37... bxc3 {[%clk 0:00:59.5]} 0-1

[Event "*** Titled Tuesday Blitz"]
[Site "Chess.com"]
[Date "2020.05.05"]
[Round "5"]
[White "Borsuk_Konstantin"]
[Black "Indianlad"]
[Result "0-1"]
[WhiteElo "2627"]
[BlackElo "2908"]
[TimeControl "180+1"]
[EndTime "10:56:27 PDT"]
[Termination "Indianlad won on time"]

1. d4 {[%clk 0:03:00.9]} 1... Nf6 {[%clk 0:03:00]} 2. c4 {[%clk 0:03:00.6]} 2...
e6 {[%clk 0:03:00.4]} 3. Nc3 {[%clk 0:03:00.7]} 3... Bb4 {[%clk 0:03:00.1]} 4.
Qc2 {[%clk 0:03:01.1]} 4... c5 {[%clk 0:02:59]} 5. dxc5 {[%clk 0:03:00.6]} 5...
O-O {[%clk 0:02:59.6]} 6. Nf3 {[%clk 0:02:57.7]} 6... Na6 {[%clk 0:02:58.7]} 7.
a3 {[%clk 0:02:53]} 7... Bxc3+ {[%clk 0:02:58.2]} 8. Qxc3 {[%clk 0:02:53.9]}
8... Nxc5 {[%clk 0:02:58.7]} 9. Bf4 {[%clk 0:02:20]} 9... Nce4 {[%clk
0:02:36.7]} 10. Qc2 {[%clk 0:02:08.2]} 10... d5 {[%clk 0:02:34.6]} 11. cxd5
{[%clk 0:01:48]} 11... exd5 {[%clk 0:02:32.7]} 12. Nd4 {[%clk 0:01:31.2]} 12...
Ng4 {[%clk 0:02:15.5]} 13. f3 {[%clk 0:01:15.7]} 13... Qf6 {[%clk 0:02:15.6]}
14. e3 {[%clk 0:01:06.7]} 14... g5 {[%clk 0:02:16.1]} 15. fxg4 {[%clk 0:00:37]}
15... gxf4 {[%clk 0:02:16]} 16. Bd3 {[%clk 0:00:33.5]} 16... Qh4+ {[%clk
0:02:15.4]} 17. g3 {[%clk 0:00:15]} 17... Nxg3 {[%clk 0:02:15.6]} 18. Qf2 {[%clk
0:00:11.7]} 18... Qh6 {[%clk 0:01:18.2]} 19. Rg1 {[%clk 0:00:07]} 19... Ne4
{[%clk 0:01:18.6]} 20. Qxf4 {[%clk 0:00:04.6]} 20... Qxf4 {[%clk 0:01:11.9]} 21.
exf4 {[%clk 0:00:05.5]} 21... Re8 {[%clk 0:01:12.8]} 22. O-O-O {[%clk
0:00:03.5]} 22... Kf8 {[%clk 0:01:10.6]} 23. Kb1 {[%clk 0:00:02.8]} 23... Nf2
{[%clk 0:01:03.2]} 24. Rd2 {[%clk 0:00:02.8]} 24... Nxg4 {[%clk 0:01:03.8]} 25.
Bxh7 {[%clk 0:00:02.9]} 25... Nf6 {[%clk 0:01:00.8]} 26. Bf5 {[%clk 0:00:03.3]}
26... Bxf5+ {[%clk 0:00:58]} 27. Nxf5 {[%clk 0:00:03]} 27... Re4 {[%clk
0:00:58.9]} 28. Rf2 {[%clk 0:00:01.3]} 28... Rae8 {[%clk 0:00:59.5]} 29. Ka2
{[%clk 0:00:01.2]} 29... Re2 {[%clk 0:00:59.7]} 30. Rf3 {[%clk 0:00:01.5]} 30...
Rxh2 {[%clk 0:00:58.6]} 31. Rfg3 {[%clk 0:00:01.6]} 31... Ree2 {[%clk
0:00:56.5]} 32. Rb3 {[%clk 0:00:01.4]} 32... b6 {[%clk 0:00:57.2]} 33. Rc1
{[%clk 0:00:01.2]} 33... Rc2 {[%clk 0:00:57.9]} 0-1

[Event "*** Titled Tuesday Blitz"]
[Site "Chess.com"]
[Date "2020.05.05"]
[Round "5"]
[White "swisspower96"]
[Black "Fandorine"]
[Result "0-1"]
[WhiteElo "2604"]
[BlackElo "2811"]
[TimeControl "180+1"]
[EndTime "10:56:27 PDT"]
[Termination "Fandorine won by resignation"]

1. d4 {[%clk 0:03:00.9]} 1... Nf6 {[%clk 0:03:00.1]} 2. c4 {[%clk 0:03:00.3]}
2... g6 {[%clk 0:03:00.4]} 3. Nc3 {[%clk 0:03:00.3]} 3... Bg7 {[%clk 0:03:00.9]}
4. e4 {[%clk 0:03:00.2]} 4... d6 {[%clk 0:03:01.5]} 5. h3 {[%clk 0:03:00.5]}
5... O-O {[%clk 0:03:01.7]} 6. Be3 {[%clk 0:03:01.1]} 6... Na6 {[%clk
0:03:02.2]} 7. Nf3 {[%clk 0:02:59.3]} 7... c6 {[%clk 0:03:00.8]} 8. g4 {[%clk
0:02:51.6]} 8... Nc7 {[%clk 0:02:55.6]} 9. Bg2 {[%clk 0:02:48.8]} 9... b5 {[%clk
0:02:53.1]} 10. e5 {[%clk 0:02:47.1]} 10... Nd7 {[%clk 0:02:36.4]} 11. cxb5
{[%clk 0:02:33.2]} 11... Nxb5 {[%clk 0:02:31.1]} 12. Nxb5 {[%clk 0:02:26.6]}
12... cxb5 {[%clk 0:02:32]} 13. Ng5 {[%clk 0:02:25.4]} 13... Nb6 {[%clk
0:02:21]} 14. Bxa8 {[%clk 0:02:16.8]} 14... Nxa8 {[%clk 0:02:21.9]} 15. f4
{[%clk 0:01:57.5]} 15... Nb6 {[%clk 0:02:18.9]} 16. O-O {[%clk 0:01:47.6]} 16...
Bb7 {[%clk 0:02:15.3]} 17. e6 {[%clk 0:01:41.9]} 17... f5 {[%clk 0:02:13.5]} 18.
d5 {[%clk 0:01:20.9]} 18... Bxd5 {[%clk 0:01:14.9]} 19. Kh2 {[%clk 0:01:06.3]}
19... Bc4 {[%clk 0:00:59.2]} 20. Re1 {[%clk 0:01:00.4]} 20... fxg4 {[%clk
0:00:57.9]} 21. Qxg4 {[%clk 0:00:55.7]} 21... Nd5 {[%clk 0:00:56.3]} 22. Bd2
{[%clk 0:00:50.4]} 22... Qb6 {[%clk 0:00:45.5]} 23. Qh4 {[%clk 0:00:40.9]} 23...
h5 {[%clk 0:00:41.3]} 24. Rg1 {[%clk 0:00:29.9]} 24... Nxf4 {[%clk 0:00:30.8]}
25. Nf7 {[%clk 0:00:20]} 25... Nxe6 {[%clk 0:00:28.7]} 26. Nh6+ {[%clk
0:00:18.2]} 26... Kh7 {[%clk 0:00:26.8]} 27. Rxg6 {[%clk 0:00:12.9]} 27... Qf2+
{[%clk 0:00:26]} 28. Qxf2 {[%clk 0:00:11.4]} 28... Rxf2+ {[%clk 0:00:26.9]} 29.
Rg2 {[%clk 0:00:11.5]} 0-1

[Event "*** Titled Tuesday Blitz"]
[Site "Chess.com"]
[Date "2020.05.05"]
[Round "5"]
[White "CroissantNeuf"]
[Black "pichonazo"]
[Result "0-1"]
[WhiteElo "2356"]
[BlackElo "2515"]
[TimeControl "180+1"]
[EndTime "10:56:29 PDT"]
[Termination "pichonazo won by resignation"]

1. Nf3 {[%clk 0:03:00.9]} 1... Nf6 {[%clk 0:02:59.6]} 2. g3 {[%clk 0:03:00.9]}
2... g6 {[%clk 0:03:00.1]} 3. b3 {[%clk 0:03:00.6]} 3... Bg7 {[%clk 0:03:00.3]}
4. Bb2 {[%clk 0:03:01.5]} 4... O-O {[%clk 0:03:00.4]} 5. Bg2 {[%clk 0:03:01.4]}
5... d6 {[%clk 0:03:00.8]} 6. d4 {[%clk 0:03:01.5]} 6... Nc6 {[%clk 0:02:58.6]}
7. O-O {[%clk 0:03:01]} 7... Bf5 {[%clk 0:02:58]} 8. c4 {[%clk 0:02:34.9]} 8...
a5 {[%clk 0:02:50.3]} 9. d5 {[%clk 0:02:29]} 9... Nb4 {[%clk 0:02:46.5]} 10. Nd4
{[%clk 0:02:28.2]} 10... Bd7 {[%clk 0:02:42.4]} 11. a3 {[%clk 0:02:20.2]} 11...
Na6 {[%clk 0:02:41.8]} 12. Nc3 {[%clk 0:02:16.6]} 12... Nc5 {[%clk 0:02:39.9]}
13. Qc2 {[%clk 0:01:49.8]} 13... Qc8 {[%clk 0:02:36.5]} 14. b4 {[%clk
0:01:43.7]} 14... e5 {[%clk 0:02:24.3]} 15. dxe6 {[%clk 0:01:07.4]} 15... Nxe6
{[%clk 0:02:23]} 16. Ndb5 {[%clk 0:00:58.6]} 16... Ng5 {[%clk 0:02:15.1]} 17. h4
{[%clk 0:00:27.2]} 17... Ne6 {[%clk 0:02:03]} 18. Rad1 {[%clk 0:00:21]} 18...
Re8 {[%clk 0:02:01.8]} 19. Rd2 {[%clk 0:00:15.1]} 19... axb4 {[%clk 0:02:02.1]}
20. axb4 {[%clk 0:00:14.8]} 20... h5 {[%clk 0:01:54.8]} 21. Nd5 {[%clk
0:00:14.1]} 21... Nxd5 {[%clk 0:01:49.5]} 22. Bxg7 {[%clk 0:00:12.1]} 22... Nxb4
{[%clk 0:01:43.3]} 23. Qb2 {[%clk 0:00:10.9]} 23... Nxg7 {[%clk 0:01:43.1]} 24.
Qxb4 {[%clk 0:00:10.6]} 24... Bc6 {[%clk 0:01:40.9]} 25. Bd5 {[%clk 0:00:09.8]}
25... Nf5 {[%clk 0:01:34.1]} 26. e4 {[%clk 0:00:09]} 26... Ng7 {[%clk
0:01:28.6]} 27. Rb1 {[%clk 0:00:09.5]} 27... Qd7 {[%clk 0:01:28]} 28. Nd4 {[%clk
0:00:09.2]} 28... Bxd5 {[%clk 0:01:26.8]} 29. cxd5 {[%clk 0:00:09.1]} 29... b6
{[%clk 0:01:27]} 30. Nc6 {[%clk 0:00:09]} 30... f5 {[%clk 0:01:23]} 31. exf5
{[%clk 0:00:08.2]} 31... Nxf5 {[%clk 0:01:22.6]} 32. Rdd1 {[%clk 0:00:08.2]}
32... Re2 {[%clk 0:01:19]} 33. Re1 {[%clk 0:00:08.2]} 33... Rae8 {[%clk
0:01:17.2]} 34. Rxe2 {[%clk 0:00:08]} 34... Rxe2 {[%clk 0:01:18.1]} 35. Re1
{[%clk 0:00:08.5]} 35... Qe8 {[%clk 0:01:17.8]} 36. Rxe2 {[%clk 0:00:08.7]}
36... Qxe2 {[%clk 0:01:17.5]} 37. Qf4 {[%clk 0:00:09]} 37... Qd1+ {[%clk
0:01:15.7]} 38. Kh2 {[%clk 0:00:09.6]} 38... Qxd5 {[%clk 0:01:15.8]} 39. Nd8
{[%clk 0:00:09.2]} 39... Qe5 {[%clk 0:01:12.5]} 40. Qg5 {[%clk 0:00:08.4]} 40...
Kg7 {[%clk 0:01:08.6]} 41. Nc6 {[%clk 0:00:08.3]} 41... Qf6 {[%clk 0:01:07.6]}
42. Qf4 {[%clk 0:00:08.1]} 42... Ne7 {[%clk 0:01:06.2]} 43. Qxf6+ {[%clk
0:00:05.4]} 43... Kxf6 {[%clk 0:01:05.4]} 0-1

[Event "*** Titled Tuesday Blitz"]
[Site "Chess.com"]
[Date "2020.05.05"]
[Round "5"]
[White "Corpescador"]
[Black "Balla_Tamas"]
[Result "0-1"]
[WhiteElo "2394"]
[BlackElo "2562"]
[TimeControl "180+1"]
[EndTime "10:56:30 PDT"]
[Termination "Balla_Tamas won on time"]

1. e4 {[%clk 0:03:00.9]} 1... c5 {[%clk 0:02:57.8]} 2. Nf3 {[%clk 0:03:00.8]}
2... e6 {[%clk 0:02:54.5]} 3. g3 {[%clk 0:03:00.9]} 3... a6 {[%clk 0:02:52.4]}
4. Bg2 {[%clk 0:02:58]} 4... Qc7 {[%clk 0:02:51.4]} 5. d4 {[%clk 0:02:48.1]}
5... cxd4 {[%clk 0:02:50.8]} 6. Nxd4 {[%clk 0:02:49]} 6... Nf6 {[%clk
0:02:50.1]} 7. O-O {[%clk 0:02:45.3]} 7... Nc6 {[%clk 0:02:48.9]} 8. Nxc6 {[%clk
0:02:29.1]} 8... dxc6 {[%clk 0:02:45.7]} 9. Be3 {[%clk 0:02:09.9]} 9... e5
{[%clk 0:02:43.7]} 10. h3 {[%clk 0:01:55.7]} 10... Be6 {[%clk 0:02:35.7]} 11.
Nd2 {[%clk 0:01:55.5]} 11... Nd7 {[%clk 0:02:31.3]} 12. f4 {[%clk 0:01:48.5]}
12... Bc5 {[%clk 0:02:27.4]} 13. Qe2 {[%clk 0:01:33.3]} 13... Qb6 {[%clk
0:02:18.8]} 14. Rae1 {[%clk 0:01:26.9]} 14... exf4 {[%clk 0:02:07.2]} 15. gxf4
{[%clk 0:01:27.1]} 15... Bxe3+ {[%clk 0:01:59.6]} 16. Qxe3 {[%clk 0:01:26.7]}
16... Qxe3+ {[%clk 0:01:59.5]} 17. Rxe3 {[%clk 0:01:26.5]} 17... f6 {[%clk
0:01:58.1]} 18. b3 {[%clk 0:01:15]} 18... O-O-O {[%clk 0:01:56.8]} 19. Nf3
{[%clk 0:01:12.6]} 19... Nc5 {[%clk 0:01:51.2]} 20. Rfe1 {[%clk 0:01:09.4]}
20... Rhe8 {[%clk 0:01:48.7]} 21. Kh2 {[%clk 0:01:09.4]} 21... Kc7 {[%clk
0:01:47]} 22. R1e2 {[%clk 0:01:01.1]} 22... Rd1 {[%clk 0:01:45.1]} 23. Nh4
{[%clk 0:00:57.7]} 23... Red8 {[%clk 0:01:33.6]} 24. f5 {[%clk 0:00:53.4]} 24...
Bf7 {[%clk 0:01:30]} 25. Rg3 {[%clk 0:00:52]} 25... Rg8 {[%clk 0:01:25.1]} 26.
e5 {[%clk 0:00:44.4]} 26... Bh5 {[%clk 0:01:20.8]} 27. Ree3 {[%clk 0:00:26.5]}
27... fxe5 {[%clk 0:01:20.2]} 28. Rxe5 {[%clk 0:00:24.9]} 28... Kb6 {[%clk
0:01:20.7]} 29. f6 {[%clk 0:00:23.2]} 29... Bg6 {[%clk 0:01:17.3]} 30. Nxg6
{[%clk 0:00:22.8]} 30... gxf6 {[%clk 0:01:14.5]} 31. Rf5 {[%clk 0:00:15.2]}
31... Rxg6 {[%clk 0:01:10.4]} 32. Rxg6 {[%clk 0:00:14.5]} 32... hxg6 {[%clk
0:01:10.3]} 33. Rxf6 {[%clk 0:00:14.8]} 33... Rd2 {[%clk 0:01:10.9]} 34. Rxg6
{[%clk 0:00:14.3]} 34... Rxc2 {[%clk 0:01:11.7]} 35. h4 {[%clk 0:00:14.9]} 35...
Nd3 {[%clk 0:01:07.6]} 36. Rf6 {[%clk 0:00:09.9]} 36... Ne1 {[%clk 0:01:04.6]}
37. Rg6 {[%clk 0:00:10.1]} 37... Rxa2 {[%clk 0:01:01.4]} 38. h5 {[%clk
0:00:09.2]} 38... Nxg2 {[%clk 0:01:00.5]} 39. Rxg2 {[%clk 0:00:08.5]} 39... Ra5
{[%clk 0:01:01.1]} 0-1

[Event "*** Titled Tuesday Blitz"]
[Site "Chess.com"]
[Date "2020.05.05"]
[Round "5"]
[White "theblitzchamp"]
[Black "Dumbo32"]
[Result "1-0"]
[WhiteElo "2683"]
[BlackElo "2435"]
[TimeControl "180+1"]
[EndTime "10:56:31 PDT"]
[Termination "theblitzchamp won by checkmate"]

1. d4 {[%clk 0:03:00.9]} 1... d5 {[%clk 0:02:59.3]} 2. Bf4 {[%clk 0:03:00.4]}
2... Nf6 {[%clk 0:02:58.6]} 3. Nf3 {[%clk 0:02:59.5]} 3... g6 {[%clk 0:02:57.2]}
4. Nc3 {[%clk 0:02:52.3]} 4... Bg7 {[%clk 0:02:56.2]} 5. h4 {[%clk 0:02:51.2]}
5... h5 {[%clk 0:02:48.1]} 6. e3 {[%clk 0:02:50.7]} 6... Bg4 {[%clk 0:02:36]} 7.
Be2 {[%clk 0:02:50]} 7... c5 {[%clk 0:02:28.4]} 8. Ne5 {[%clk 0:02:45.8]} 8...
Bxe2 {[%clk 0:02:23.9]} 9. Qxe2 {[%clk 0:02:45.1]} 9... Nc6 {[%clk 0:02:19.8]}
10. O-O-O {[%clk 0:02:41]} 10... c4 {[%clk 0:02:00.1]} 11. g4 {[%clk 0:02:36.3]}
11... hxg4 {[%clk 0:01:32.9]} 12. Nxg4 {[%clk 0:02:30.3]} 12... Nh5 {[%clk
0:01:29.6]} 13. Be5 {[%clk 0:02:16.1]} 13... Qa5 {[%clk 0:01:23.3]} 14. Kb1
{[%clk 0:02:10.9]} 14... O-O-O {[%clk 0:00:59]} 15. Qf3 {[%clk 0:01:52.3]} 15...
f5 {[%clk 0:00:51.4]} 16. Bxg7 {[%clk 0:01:41.9]} 16... Nxg7 {[%clk 0:00:49.7]}
17. Ne5 {[%clk 0:01:32.1]} 17... Nxe5 {[%clk 0:00:47.6]} 18. dxe5 {[%clk
0:01:31.9]} 18... e6 {[%clk 0:00:45.6]} 19. Qg3 {[%clk 0:01:29.9]} 19... Rh6
{[%clk 0:00:44.1]} 20. Qg5 {[%clk 0:01:28.1]} 20... Rdh8 {[%clk 0:00:38.4]} 21.
Ne2 {[%clk 0:01:18.4]} 21... Qd8 {[%clk 0:00:37.2]} 22. Qg2 {[%clk 0:01:11.8]}
22... Rxh4 {[%clk 0:00:26.8]} 23. Rxh4 {[%clk 0:01:10.6]} 23... Rxh4 {[%clk
0:00:24.9]} 24. Qxg6 {[%clk 0:01:09.9]} 24... Rg4 {[%clk 0:00:24.6]} 25. Qf7
{[%clk 0:01:05.8]} 25... Qd7 {[%clk 0:00:24.5]} 26. Qf8+ {[%clk 0:01:05.5]}
26... Qd8 {[%clk 0:00:24.5]} 27. Qc5+ {[%clk 0:01:03.2]} 27... Kb8 {[%clk
0:00:24.4]} 28. Nd4 {[%clk 0:01:03.2]} 28... a6 {[%clk 0:00:20.6]} 29. a3 {[%clk
0:01:02.6]} 29... Qc7 {[%clk 0:00:19.3]} 30. Qb4 {[%clk 0:00:59.7]} 30... Ka7
{[%clk 0:00:18.3]} 31. Rh1 {[%clk 0:00:58.1]} 31... Qxe5 {[%clk 0:00:16.2]} 32.
Rh7 {[%clk 0:00:54.1]} 32... Rxd4 {[%clk 0:00:10.3]} 33. exd4 {[%clk 0:00:52.2]}
33... Qxd4 {[%clk 0:00:10.1]} 34. Qe7 {[%clk 0:00:50.9]} 34... Nh5 {[%clk
0:00:01.6]} 35. Qxb7# {[%clk 0:00:49.6]} 1-0